bitfinex/quotes_BTCUSD_20250614
["timestamp","ask_amount","ask_price","bid_price","bid_amount"]
[1749875787426,0.72334754,105420.0,105410.0,0.0304]
[1749875787627,0.72334754,105420.0,105410.0,0.04813969]
[1749875787829,0.72834754,105420.0,105410.0,0.04813969]
[1749875788057,0.72834754,105420.0,105410.0,0.04912063]
[1749875788190,0.73534754,105420.0,105410.0,0.04912063]
[1749875789150,0.7447091,105420.0,105410.0,0.04912063]
[1749875789754,0.7447091,105420.0,105410.0,0.04912027]
[1749875790289,0.7447091,105420.0,105410.0,0.0314]
[1749875790607,0.7447091,105420.0,105410.0,0.04912027]
[1749875790817,0.7447091,105420.0,105410.0,0.04912025]
[1749875791018,0.7447091,105420.0,105410.0,0.0314]
[1749875791142,0.7447091,105420.0,105410.0,0.04912025]
[1749875791351,0.7447091,105420.0,105410.0,0.04912026]
[1749875791597,0.7447091,105420.0,105410.0,0.0314]
[1749875791985,0.7447091,105420.0,105410.0,0.04912025]
[1749875792443,0.7447091,105420.0,105410.0,0.0314]
[1749875792651,0.7447091,105420.0,105410.0,0.04912025]
[1749875793335,0.7447091,105420.0,105410.0,0.0314]
[1749875793485,0.7447091,105420.0,105410.0,0.04912025]
[1749875794092,0.7447091,105420.0,105410.0,0.0314]
[1749875794546,0.7447091,105420.0,105410.0,0.04912025]
[1749875794926,0.7447091,105420.0,105410.0,0.0314]
[1749875795297,0.7447091,105420.0,105410.0,0.04912054]
[1749875795531,0.7447091,105420.0,105410.0,0.0314]
[1749875795878,0.7447091,105420.0,105410.0,0.04912052]
[1749875796078,0.7447091,105420.0,105410.0,0.0314]
[1749875796201,0.7447091,105420.0,105410.0,0.04912052]
[1749875796606,0.7447091,105420.0,105410.0,0.04912051]
[1749875797639,0.7445491,105420.0,105410.0,0.04912048]
[1749875798148,0.7445491,105420.0,105410.0,0.04912303]
[1749875798149,0.5511091,105420.0,105410.0,0.04912303]
[1749875798352,0.7445491,105420.0,105410.0,0.04912301]
[1749875798553,0.7445491,105420.0,105410.0,0.03392301]
[1749875798791,0.7445491,105420.0,105410.0,0.033923]
[1749875799350,0.7445491,105420.0,105410.0,0.0162]
[1749875799615,0.7445491,105420.0,105410.0,0.033923]
[1749875799970,0.7445491,105420.0,105410.0,0.049023]
[1749875800169,0.7445491,105420.0,105410.0,0.0313]
[1749875800401,0.7445491,105420.0,105410.0,0.049023]
[1749875801202,0.7445491,105420.0,105410.0,0.04903734]
[1749875801430,0.7445491,105420.0,105410.0,0.0313]
[1749875801633,0.7445491,105420.0,105410.0,0.04903734]
[1749875803315,0.7445491,105420.0,105410.0,0.04903866]
[1749875803689,0.7445491,105420.0,105410.0,0.04903877]
[1749875803893,0.7445491,105420.0,105410.0,0.04903885]
[1749875804172,0.7445491,105420.0,105410.0,0.0313]
[1749875804388,0.7445491,105420.0,105410.0,0.04903884]
[1749875805648,0.7445491,105420.0,105410.0,0.0313]
[1749875805859,0.7445491,105420.0,105410.0,0.04903883]
[1749875806577,0.7445491,105420.0,105410.0,0.0313]
[1749875806749,0.7445491,105420.0,105410.0,0.04903883]
[1749875807324,0.7445491,105420.0,105410.0,0.04903884]
[1749875807731,0.7445491,105420.0,105410.0,0.04903883]
[1749875808088,0.7445491,105420.0,105410.0,0.04903884]
[1749875809039,0.7445491,105420.0,105410.0,0.0313]
[1749875809201,0.7445491,105420.0,105410.0,0.04903883]
[1749875809397,0.7445491,105420.0,105410.0,0.0313]
[1749875809693,0.7445491,105420.0,105410.0,0.0490411]
[1749875809962,0.7445491,105420.0,105410.0,0.04904119]
[1749875810159,0.7445491,105420.0,105410.0,0.0313]
[1749875810321,0.7445491,105420.0,105410.0,0.04903518]
[1749875810518,0.7445491,105420.0,105410.0,0.0313]
[1749875810729,0.7445491,105420.0,105410.0,0.04903518]
[1749875813527,0.7445491,105420.0,105410.0,0.04903523]
[1749875813721,0.7445491,105420.0,105410.0,0.03393523]
[1749875814161,0.7445491,105420.0,105410.0,0.03393525]
[1749875814374,0.7445491,105420.0,105410.0,0.03393524]
[1749875814523,0.7445491,105420.0,105410.0,0.0162]
[1749875815495,0.7445491,105420.0,105410.0,0.03393523]
[1749875816050,0.7445491,105420.0,105410.0,0.04903523]
[1749875816743,0.5511091,105420.0,105410.0,0.04903523]
[1749875817137,0.5904691,105420.0,105410.0,0.0313]
[1749875817359,0.7440691,105420.0,105410.0,0.0313]
[1749875817740,0.7440691,105420.0,105410.0,0.04903319]
[1749875818168,0.7440691,105420.0,105410.0,0.0313]
[1749875818304,0.7440691,105420.0,105410.0,0.04903319]
[1749875818490,0.7440691,105420.0,105410.0,0.0313]
[1749875818692,0.7440691,105420.0,105410.0,0.04903319]
[1749875819122,0.7440691,105420.0,105410.0,0.04903392]
[1749875819323,0.7440691,105420.0,105410.0,0.04903406]
[1749875820040,0.7440691,105420.0,105410.0,0.0313]
[1749875820453,0.7440691,105420.0,105410.0,0.04903408]
[1749875821109,0.7440691,105420.0,105410.0,0.0313]
[1749875821310,0.7440691,105420.0,105410.0,0.04903408]
[1749875822232,0.5511091,105420.0,105410.0,0.04903408]
[1749875822410,0.7440691,105420.0,105410.0,0.04903408]
[1749875823280,0.7440691,105420.0,105410.0,0.0313]
[1749875823708,0.7440691,105420.0,105410.0,0.04903408]
[1749875824100,0.7440691,105420.0,105410.0,0.0313]
[1749875824310,0.7440691,105420.0,105410.0,0.04903408]
[1749875824876,0.59995496,105420.0,105410.0,0.25532044]
[1749875825268,0.76308055,105420.0,105410.0,0.28253884]
[1749875825505,0.75359496,105420.0,105410.0,0.23876675]
[1749875825702,0.75359496,105420.0,105410.0,0.22103531]
[1749875826319,0.75359496,105420.0,105410.0,0.24825437]
[1749875826605,0.75359496,105420.0,105410.0,0.23052207]
[1749875827040,0.75359496,105420.0,105410.0,0.24824737]
[1749875827241,0.75359496,105420.0,105410.0,0.24824738]
[1749875827680,0.7441091,105420.0,105410.0,0.05851207]
[1749875828317,0.7441091,105420.0,105410.0,0.05850559]
[1749875828515,0.7441091,105420.0,105410.0,0.04078676]
[1749875828841,0.7441091,105420.0,105410.0,0.05850559]
[1749875829503,0.7441091,105420.0,105410.0,0.04078676]
[1749875829711,0.7441091,105420.0,105410.0,0.05850559]
[1749875829881,0.7441091,105420.0,105410.0,0.04078676]
[1749875830104,0.7441091,105420.0,105410.0,0.05850559]
[1749875830286,0.7441091,105420.0,105410.0,0.04078676]
[1749875830489,0.7441091,105420.0,105410.0,0.05850559]
[1749875832196,0.7441091,105420.0,105410.0,0.04078676]
[1749875832402,0.7441091,105420.0,105410.0,0.05850559]
[1749875832607,0.7441091,105420.0,105410.0,0.24000874]
[1749875832807,0.7441091,105420.0,105410.0,0.25772757]
[1749875833230,0.7441091,105420.0,105410.0,0.24000874]
[1749875833424,0.7441091,105420.0,105410.0,0.2577289]
[1749875833650,0.7441091,105420.0,105410.0,0.25772892]
[1749875833850,0.7441091,105420.0,105410.0,0.25772901]
[1749875834048,0.7441091,105420.0,105410.0,0.26721587]
[1749875834461,0.7441091,105420.0,105410.0,0.24949532]
[1749875834691,0.56059487,105420.0,105410.0,0.27670228]
[1749875834866,0.75363487,105420.0,105410.0,0.26721588]
[1749875835485,0.75363487,105420.0,105410.0,0.24949532]
[1749875835701,0.75363487,105420.0,105410.0,0.26721673]
[1749875835915,0.75363487,105420.0,105410.0,0.26721682]
[1749875836684,0.75363487,105420.0,105410.0,0.26721677]
[1749875837833,0.75363487,105420.0,105410.0,0.26721676]
[1749875837984,0.75363487,105420.0,105410.0,0.26721677]
[1749875838184,0.75363487,105420.0,105410.0,0.26721678]
[1749875839313,0.75363487,105420.0,105410.0,0.26721677]
[1749875839764,0.75363487,105420.0,105410.0,0.24949532]
[1749875840161,0.75363487,105420.0,105410.0,0.27672576]
[1749875840898,0.75363487,105420.0,105410.0,0.27672574]
[1749875841145,0.75363487,105420.0,105410.0,0.25898181]
[1749875841394,0.75363487,105420.0,105410.0,0.27672573]
[1749875841822,0.75363487,105420.0,105410.0,0.27672574]
[1749875842312,0.75363487,105420.0,105410.0,0.27672573]
[1749875843373,0.75363487,105420.0,105410.0,0.27672574]
[1749875843618,0.75363487,105420.0,105410.0,0.25898181]
[1749875844047,0.75363487,105420.0,105410.0,0.27672579]
[1749875844511,0.75363487,105420.0,105410.0,0.28621221]
[1749875844940,0.75363487,105420.0,105410.0,0.28621219]
[1749875845159,0.75363487,105420.0,105410.0,0.28621216]
[1749875845371,0.75363487,105420.0,105410.0,0.2862112]
[1749875845841,0.75363487,105420.0,105410.0,0.286211]
[1749875846494,0.56059487,105420.0,105410.0,0.28621099]
[1749875846697,0.75371487,105420.0,105410.0,0.28621099]
[1749875847084,0.75371487,105420.0,105410.0,0.28621098]
[1749875848479,0.75371487,105420.0,105410.0,0.31433367]
[1749875848620,0.75371487,105420.0,105410.0,0.2965909]
[1749875849025,0.75371487,105420.0,105410.0,0.31433368]
[1749875849259,0.75371487,105420.0,105410.0,0.30484728]
[1749875849476,0.75371487,105420.0,105410.0,0.27761801]
[1749875849674,0.75371487,105420.0,105410.0,0.2953608]
[1749875850048,0.75371487,105420.0,105410.0,0.27761801]
[1749875850247,0.75371487,105420.0,105410.0,0.2953608]
[1749875850447,0.75371487,105420.0,105410.0,0.27761801]
[1749875850652,0.75371487,105420.0,105410.0,0.2953608]
[1749875851102,0.75371487,105420.0,105410.0,0.29536079]
[1749875851577,0.75371487,105420.0,105410.0,0.27761801]
[1749875851829,0.75371487,105420.0,105410.0,0.29536079]
[1749875852251,0.75371487,105420.0,105410.0,0.27761801]
[1749875852477,0.75371487,105420.0,105410.0,0.29536079]
[1749875852705,0.75371487,105420.0,105410.0,0.27761801]
[1749875852917,0.75371487,105420.0,105410.0,0.29535318]
[1749875853121,0.75371487,105420.0,105410.0,0.27761801]
[1749875853301,0.75371487,105420.0,105410.0,0.29535318]
[1749875853529,0.75371487,105420.0,105410.0,0.2858666]
[1749875854341,0.75371487,105420.0,105410.0,0.32475966]
[1749875854544,0.75371487,105420.0,105410.0,0.34249483]
[1749875854951,0.75371487,105420.0,105410.0,0.32475966]
[1749875855138,0.75371487,105420.0,105410.0,0.34249483]
[1749875855376,0.75371487,105420.0,105410.0,0.32475966]
[1749875855638,0.75371487,105420.0,105410.0,0.34249483]
[1749875856276,0.75371487,105420.0,105410.0,0.34249482]
[1749875856844,0.75371487,105420.0,105410.0,0.32475966]
[1749875857052,0.75371487,105420.0,105410.0,0.34250244]
[1749875859805,0.75371487,105420.0,105410.0,0.32475966]
[1749875860007,0.75371487,105420.0,105410.0,0.34250244]
[1749875860620,0.75371487,105420.0,105410.0,0.34250242]
[1749875861748,0.75371487,105420.0,105410.0,0.32475966]
[1749875861983,0.75371487,105420.0,105410.0,0.34250243]
[1749875862493,0.75371487,105420.0,105410.0,0.33424624]
[1749875862712,0.75371487,105420.0,105410.0,0.35198901]
[1749875863581,0.75371487,105420.0,105410.0,0.33424624]
[1749875863785,0.75371487,105420.0,105410.0,0.35198901]
[1749875864017,0.75371487,105420.0,105410.0,0.33424624]
[1749875864194,0.75371487,105420.0,105410.0,0.35199022]
[1749875864448,0.75371487,105420.0,105410.0,0.35199017]
[1749875864852,0.75371487,105420.0,105410.0,0.35199016]
[1749875865076,0.56059487,105420.0,105410.0,0.35199014]
[1749875865280,0.75359487,105420.0,105410.0,0.35199014]
[1749875865482,0.75359487,105420.0,105410.0,0.33424624]
[1749875865657,0.75359487,105420.0,105410.0,0.35199014]
[1749875866293,0.75359487,105420.0,105410.0,0.33424624]
[1749875866532,0.75359487,105420.0,105410.0,0.35199015]
[1749875866741,0.75359487,105420.0,105410.0,0.33424624]
[1749875866953,0.75359487,105420.0,105410.0,0.35199015]
[1749875867776,0.75359487,105420.0,105410.0,0.35199014]
[1749875868356,0.75359487,105420.0,105410.0,0.33424624]
[1749875868494,0.75359487,105420.0,105410.0,0.35199014]
[1749875870342,0.75359487,105420.0,105410.0,0.33424624]
[1749875870753,0.75359487,105420.0,105410.0,0.35199014]
[1749875870964,0.75359487,105420.0,105410.0,0.33424624]
[1749875871172,0.75359487,105420.0,105410.0,0.35199014]
[1749875872537,0.75359487,105420.0,105410.0,0.33424624]
[1749875872746,0.75359487,105420.0,105410.0,0.35199014]
[1749875873368,0.75359487,105420.0,105410.0,0.33424624]
[1749875873576,0.75359487,105420.0,105410.0,0.33689014]
[1749875873753,0.75359487,105420.0,105410.0,0.30965966]
[1749875873951,0.75359487,105420.0,105410.0,0.3274036]
[1749875874358,0.75359487,105420.0,105410.0,0.30965966]
[1749875874839,0.75359487,105420.0,105410.0,0.32740358]
[1749875875028,0.75359487,105420.0,105410.0,0.30965966]
[1749875875234,0.75359487,105420.0,105410.0,0.3274036]
[1749875875720,0.75359487,105420.0,105410.0,0.32740361]
[1749875875922,0.75359487,105420.0,105410.0,0.30965966]
[1749875876132,0.75359487,105420.0,105410.0,0.32740362]
[1749875876386,0.75359487,105420.0,105410.0,0.30965966]
[1749875876828,0.7441091,105420.0,105410.0,0.31791695]
[1749875877059,0.7441091,105420.0,105410.0,0.30017299]
[1749875877522,0.7441091,105420.0,105410.0,0.30271695]
[1749875878088,0.7441091,105420.0,105410.0,0.30271698]
[1749875878364,0.7441091,105420.0,105410.0,0.31220365]
[1749875879249,0.7441091,105420.0,105410.0,0.29445966]
[1749875879457,0.7441091,105420.0,105410.0,0.31220359]
[1749875880078,0.7441091,105420.0,105410.0,0.31220399]
[1749875880252,0.7441091,105420.0,105410.0,0.28497299]
[1749875880479,0.7441091,105420.0,105410.0,0.22834476]
[1749875880815,0.7441091,105420.0,105410.0,0.24608934]
[1749875881064,0.7441091,105420.0,105410.0,0.04686726]
[1749875881324,0.7759091,105420.0,105410.0,0.01874762]
[1749875881551,0.7759091,105420.0,105410.0,0.01874777]
[1749875881788,0.7759091,105420.0,105410.0,0.01874837]
[1749875881993,0.7759091,105420.0,105410.0,0.01874839]
[1749875882204,0.7759091,105420.0,105410.0,0.01874841]
[1749875882425,0.7759091,105420.0,105410.0,0.01872416]
[1749875882637,0.7441091,105420.0,105410.0,0.01871558]
[1749875882841,0.7441091,105420.0,105410.0,0.001]
[1749875883089,0.7441091,105420.0,105410.0,0.01871621]
[1749875883293,0.7441091,105420.0,105410.0,0.001]
[1749875883502,0.7441091,105420.0,105410.0,0.01871601]
[1749875883711,0.7441091,105420.0,105410.0,0.02535951]
[1749875884172,0.7441091,105420.0,105410.0,0.02535949]
[1749875884364,0.7441091,105420.0,105410.0,0.001]
[1749875884809,0.7441091,105420.0,105410.0,0.02535845]
[1749875885031,0.7441091,105420.0,105410.0,0.20686528]
[1749875885264,0.7441091,105420.0,105410.0,0.22458054]
[1749875885488,0.7441091,105420.0,105410.0,0.22458055]
[1749875885700,0.7441091,105420.0,105410.0,0.22458059]
[1749875885941,0.7441091,105420.0,105410.0,0.22458069]
[1749875886143,0.7441091,105420.0,105410.0,0.20022207]
[1749875886353,0.7441091,105420.0,105410.0,0.22458077]
[1749875886774,0.7441091,105420.0,105410.0,0.20686543]
[1749875886979,0.7441091,105420.0,105410.0,0.22458118]
[1749875887213,0.7441091,105420.0,105410.0,0.224581]
[1749875887417,0.7441091,105420.0,105410.0,0.20686542]
[1749875887623,0.7441091,105420.0,105410.0,0.21793769]
[1749875887841,0.7441091,105420.0,105410.0,0.20686542]
[1749875888052,0.7441091,105420.0,105410.0,0.224581]
[1749875888264,0.7441091,105420.0,105410.0,0.21793766]
[1749875888664,0.7441091,105420.0,105410.0,0.224581]
[1749875888868,0.7441091,105420.0,105410.0,0.22458102]
[1749875889708,0.7441091,105420.0,105410.0,0.20022207]
[1749875889942,0.7441091,105420.0,105410.0,0.02535895]
[1749875890573,0.7441091,105420.0,105410.0,0.00764335]
[1749875890784,0.7441091,105420.0,105410.0,0.02535894]
[1749875891406,0.7441091,105420.0,105410.0,0.02535893]
[1749875891612,0.7441091,105420.0,105410.0,0.01871559]
[1749875891857,0.7441091,105420.0,105410.0,0.02535894]
[1749875892011,0.7441091,105420.0,105410.0,0.02535895]
[1749875892243,0.7441091,105420.0,105410.0,0.0187156]
[1749875892450,0.7441091,105420.0,105410.0,0.00764335]
[1749875892630,0.7441091,105420.0,105410.0,0.02535895]
[1749875893055,0.7441091,105420.0,105410.0,0.001]
[1749875893202,0.7441091,105420.0,105410.0,0.02535893]
[1749875893405,0.7441091,105420.0,105410.0,0.01871559]
[1749875893614,0.7441091,105420.0,105410.0,0.00764334]
[1749875893813,0.7441091,105420.0,105410.0,0.01871559]
[1749875894042,0.7441091,105420.0,105410.0,0.001]
[1749875894217,0.7441091,105420.0,105410.0,0.00764334]
[1749875894418,0.7441091,105420.0,105410.0,0.02535899]
[1749875894591,0.7441091,105420.0,105410.0,0.02535898]
[1749875894801,0.7441091,105420.0,105410.0,0.00764335]
[1749875895010,0.7441091,105420.0,105410.0,0.01871561]
[1749875895213,0.7441091,105420.0,105410.0,0.00764335]
[1749875895569,0.7441091,105420.0,105410.0,0.02535894]
[1749875895778,0.7441091,105420.0,105410.0,0.00764334]
[1749875895939,0.7441091,105420.0,105410.0,0.00764305]
[1749875896143,0.7441091,105420.0,105410.0,0.02535782]
[1749875896362,0.7441091,105420.0,105410.0,0.01871366]
[1749875896778,0.7441091,105420.0,105410.0,0.01871346]
[1749875896984,0.7441091,105420.0,105410.0,0.01871337]
[1749875897198,0.7441091,105420.0,105410.0,0.001]
[1749875897409,0.7441091,105420.0,105410.0,0.01871333]
[1749875897616,0.7441091,105420.0,105410.0,0.00765365]
[1749875897825,0.7441091,105420.0,105410.0,0.01874307]
[1749875898045,0.7441091,105420.0,105410.0,0.02539658]
[1749875898250,0.7441091,105420.0,105410.0,0.02539676]
[1749875898465,0.7441091,105420.0,105410.0,0.02539826]
[1749875898686,0.7441091,105420.0,105410.0,0.02539827]
[1749875898907,0.7441091,105420.0,105410.0,0.02539828]
[1749875899087,0.7441091,105420.0,105410.0,0.02539826]
[1749875899291,0.7441091,105420.0,105410.0,0.02537393]
[1749875899459,0.7441091,105420.0,105410.0,0.0187265]
[1749875899667,0.7441091,105420.0,105410.0,0.02537317]
[1749875899860,0.7441091,105420.0,105410.0,0.02537332]
[1749875900063,0.7441091,105420.0,105410.0,0.02537427]
[1749875900274,0.7441091,105420.0,105410.0,0.02537498]
[1749875900630,0.7441091,105420.0,105410.0,0.02537509]
[1749875900907,0.7441091,105420.0,105410.0,0.02537538]
[1749875901860,0.7441091,105420.0,105410.0,0.01872755]
[1749875902068,0.7441091,105420.0,105410.0,0.02537538]
[1749875902892,0.7441091,105420.0,105410.0,0.00764783]
[1749875903215,0.7441091,105420.0,105410.0,0.01872754]
[1749875903461,0.7441091,105420.0,105410.0,0.001]
[1749875903664,0.7441091,105420.0,105410.0,0.02537557]
[1749875904068,0.7441091,105420.0,105410.0,0.02537552]
[1749875904189,0.7441091,105420.0,105410.0,0.01872768]
[1749875904570,0.7441091,105420.0,105410.0,0.02537546]
[1749875904784,0.7441091,105420.0,105410.0,0.01872774]
[1749875905047,0.7441091,105420.0,105410.0,0.0076479]
[1749875905210,0.7441091,105420.0,105410.0,0.02537564]
[1749875905759,0.5511091,105420.0,105410.0,0.25619753]
[1749875905967,0.7438291,105420.0,105410.0,0.25619723]
[1749875906178,0.7438291,105420.0,105410.0,0.24954933]
[1749875906384,0.7438291,105420.0,105410.0,0.25619735]
[1749875906589,0.7438291,105420.0,105410.0,0.24954953]
[1749875906804,0.7438291,105420.0,105410.0,0.24671085]
[1749875907043,0.7438291,105420.0,105410.0,0.26568428]
[1749875907210,0.7438291,105420.0,105410.0,0.24795661]
[1749875907537,0.7438291,105420.0,105410.0,0.2479566]
[1749875907878,0.7438291,105420.0,105410.0,0.24795661]
[1749875908013,0.7438291,105420.0,105410.0,0.26568423]
[1749875908195,0.7438291,105420.0,105410.0,0.2479566]
[1749875908402,0.7438291,105420.0,105410.0,0.27517074]
[1749875908605,0.7438291,105420.0,105410.0,0.27517079]
[1749875908864,0.75331496,105420.0,105410.0,0.27517081]
[1749875909299,0.75331496,105420.0,105410.0,0.27517088]
[1749875909452,0.75331496,105420.0,105410.0,0.27517092]
[1749875909675,0.75331496,105420.0,105410.0,0.27517089]
[1749875910040,0.75331496,105420.0,105410.0,0.2574432]
[1749875910463,0.75331496,105420.0,105410.0,0.26852302]
[1749875910636,0.75331496,105420.0,105410.0,0.25079532]
[1749875910861,0.75331496,105420.0,105410.0,0.26852297]
[1749875911013,0.75331496,105420.0,105410.0,0.26852296]
[1749875911230,0.75331496,105420.0,105410.0,0.27517084]
[1749875911449,0.75331496,105420.0,105410.0,0.27517089]
[1749875912068,0.75331496,105420.0,105410.0,0.25619764]
[1749875912282,0.75331496,105420.0,105410.0,0.25619765]
[1749875912507,0.75331496,105420.0,105410.0,0.256222]
[1749875912706,0.7438291,105420.0,105410.0,0.24673524]
[1749875912908,0.7438291,105420.0,105410.0,0.05699993]
[1749875913117,0.7438291,105420.0,105410.0,0.05699991]
[1749875913317,0.7438291,105420.0,105410.0,0.05034539]
[1749875913548,0.7438291,105420.0,105410.0,0.01874539]
[1749875913782,0.7438291,105420.0,105410.0,0.02539994]
[1749875913983,0.7438291,105420.0,105410.0,0.02539992]
[1749875914199,0.7438291,105420.0,105410.0,0.02539888]
[1749875914623,0.7438291,105420.0,105410.0,0.01874464]
[1749875914831,0.7756291,105420.0,105410.0,0.02539889]
[1749875915048,0.7756291,105420.0,105410.0,0.01874494]
[1749875915252,0.7756291,105420.0,105410.0,0.01874495]
[1749875915471,0.7756291,105420.0,105410.0,0.02539936]
[1749875916089,0.7756291,105420.0,105410.0,0.01874499]
[1749875916314,0.7756291,105420.0,105410.0,0.02539936]
[1749875916514,0.7756291,105420.0,105410.0,0.00765437]
[1749875916724,0.7756291,105420.0,105410.0,0.01874499]
[1749875917130,0.7756291,105420.0,105410.0,0.001]
[1749875917341,0.7756291,105420.0,105410.0,0.02539936]
[1749875917957,0.7756291,105420.0,105410.0,0.001]
[1749875918508,0.7756291,105420.0,105410.0,0.01874499]
[1749875918733,0.7756291,105420.0,105410.0,0.02539936]
[1749875918934,0.7756291,105420.0,105410.0,0.01874499]
[1749875919175,0.7756291,105420.0,105410.0,0.02539936]
[1749875919377,0.7756291,105420.0,105410.0,0.00765437]
[1749875919583,0.7756291,105420.0,105410.0,0.01874499]
[1749875919757,0.7756291,105420.0,105410.0,0.02539936]
[1749875919999,0.7756291,105420.0,105410.0,0.01874499]
[1749875920190,0.7756291,105420.0,105410.0,0.00765437]
[1749875920643,0.7756291,105420.0,105410.0,0.02539934]
[1749875921242,0.7756291,105420.0,105410.0,0.001]
[1749875921650,0.7756291,105420.0,105410.0,0.00765436]
[1749875921882,0.7756291,105420.0,105410.0,0.02539933]
[1749875922092,0.7756291,105420.0,105410.0,0.02539935]
[1749875922306,0.7756291,105420.0,105410.0,0.01874498]
[1749875922506,0.7756291,105420.0,105410.0,0.02539935]
[1749875922721,0.7595291,105420.0,105410.0,0.02539935]
[1749875922897,0.7595291,105420.0,105410.0,0.02539934]
[1749875923259,0.7438291,105420.0,105410.0,0.01874498]
[1749875923495,0.7438291,105420.0,105410.0,0.02539935]
[1749875923884,0.7438291,105420.0,105410.0,0.00765438]
[1749875924087,0.7438291,105420.0,105410.0,0.01874498]
[1749875924205,0.7438291,105420.0,105410.0,0.02539934]
[1749875924827,0.7438291,105420.0,105410.0,0.00765436]
[1749875925052,0.7438291,105420.0,105410.0,0.02539936]
[1749875925254,0.7438291,105420.0,105410.0,0.00765437]
[1749875925680,0.7438291,105420.0,105410.0,0.01874499]
[1749875925898,0.7438291,105420.0,105410.0,0.01874503]
[1749875926099,0.7438291,105420.0,105410.0,0.001]
[1749875926282,0.7438291,105420.0,105410.0,0.02539937]
[1749875926863,0.7438291,105420.0,105410.0,0.001]
[1749875927081,0.7437891,105420.0,105410.0,0.02539937]
[1749875927280,0.7437891,105420.0,105410.0,0.02539935]
[1749875927498,0.7437891,105420.0,105410.0,0.01874498]
[1749875927689,0.7754891,105420.0,105410.0,0.02539935]
[1749875927888,0.7754891,105420.0,105410.0,0.02540054]
[1749875928223,0.7754891,105420.0,105410.0,0.02540172]
[1749875928426,0.7754891,105420.0,105410.0,0.02540189]
[1749875928630,0.7754891,105420.0,105410.0,0.02540187]
[1749875929036,0.7754891,105420.0,105410.0,0.00765505]
[1749875929254,0.7954891,105420.0,105410.0,0.02540292]
[1749875929462,0.7954891,105420.0,105410.0,0.0076554]
[1749875929655,0.7954891,105420.0,105410.0,0.02540325]
[1749875929856,0.7954891,105420.0,105410.0,0.00765545]
[1749875930263,0.7954891,105420.0,105410.0,0.02540333]
[1749875930685,0.7954891,105420.0,105410.0,0.02540331]
[1749875931091,0.7954891,105420.0,105410.0,0.0076496]
[1749875931292,0.7954891,105420.0,105410.0,0.02538189]
[1749875931642,0.7954891,105420.0,105410.0,0.001]
[1749875931842,0.7954891,105420.0,105410.0,0.02538189]
[1749875932447,0.7954891,105420.0,105410.0,0.0076496]
[1749875932660,0.7954891,105420.0,105410.0,0.02538189]
[1749875932856,0.7954891,105420.0,105410.0,0.001]
[1749875933067,0.7954891,105420.0,105410.0,0.01873229]
[1749875933506,0.7954891,105420.0,105410.0,0.001]
[1749875933720,0.7954891,105420.0,105410.0,0.02538188]
[1749875933890,0.7954891,105420.0,105410.0,0.02538189]
[1749875934095,0.7954891,105420.0,105410.0,0.02538191]
[1749875934506,0.7954891,105420.0,105410.0,0.0253819]
[1749875935066,0.7954891,105420.0,105410.0,0.01873227]
[1749875935216,0.7954891,105420.0,105410.0,0.02538187]
[1749875935619,0.7954891,105420.0,105410.0,0.02538185]
[1749875936197,0.7954891,105420.0,105410.0,0.01873226]
[1749875936405,0.7954891,105420.0,105410.0,0.02538185]
[1749875936615,0.7954891,105420.0,105410.0,0.00764959]
[1749875936835,0.7954891,105420.0,105410.0,0.02538185]
[1749875937013,0.7954891,105420.0,105410.0,0.01873226]
[1749875937391,0.7954891,105420.0,105410.0,0.02538173]
[1749875937598,0.7954891,105420.0,105410.0,0.02538149]
[1749875937840,0.7954891,105420.0,105410.0,0.00764947]
[1749875937994,0.7954891,105420.0,105410.0,0.00764964]
[1749875938200,0.7954891,105420.0,105410.0,0.02538207]
[1749875938419,0.7954891,105420.0,105410.0,0.001]
[1749875938700,0.7954891,105420.0,105410.0,0.00764969]
[1749875939136,0.7954891,105420.0,105410.0,0.02538218]
[1749875939374,0.7954891,105420.0,105410.0,0.01873251]
[1749875939585,0.7954891,105420.0,105410.0,0.02538224]
[1749875939786,0.7954891,105420.0,105410.0,0.0187325]
[1749875940303,0.7954891,105420.0,105410.0,0.00764968]
[1749875940517,0.7954891,105420.0,105410.0,0.00764969]
[1749875940735,0.7954891,105420.0,105410.0,0.0253822]
[1749875940938,0.7954891,105420.0,105410.0,0.0187325]
[1749875941135,0.7954891,105420.0,105410.0,0.02538218]
[1749875941296,0.7954891,105420.0,105410.0,0.00764968]
[1749875941501,0.7954891,105420.0,105410.0,0.02538218]
[1749875942073,0.7954891,105420.0,105410.0,0.0187325]
[1749875942611,0.7954891,105420.0,105410.0,0.02538218]
[1749875942809,0.7954891,105420.0,105410.0,0.00764968]
[1749875943147,0.7954891,105420.0,105410.0,0.01873248]
[1749875943344,0.7954891,105420.0,105410.0,0.00764968]
[1749875943549,0.7954891,105420.0,105410.0,0.01873249]
[1749875943728,0.7954891,105420.0,105410.0,0.02538223]
[1749875943957,0.7954891,105420.0,105410.0,0.0076497]
[1749875944158,0.7794891,105420.0,105410.0,0.00765553]
[1749875944389,0.7794891,105420.0,105410.0,0.01874808]
[1749875944562,0.7794891,105420.0,105410.0,0.02540362]
[1749875944764,0.7794891,105420.0,105410.0,0.01874809]
[1749875944963,0.7794891,105420.0,105410.0,0.02540362]
[1749875945240,0.7794891,105420.0,105410.0,0.00765553]
[1749875945423,0.7794891,105420.0,105410.0,0.02540366]
[1749875945626,0.7794891,105420.0,105410.0,0.00765554]
[1749875945769,0.7794891,105420.0,105410.0,0.00765553]
[1749875945974,0.7794891,105420.0,105410.0,0.02540362]
[1749875947620,0.7794891,105420.0,105410.0,0.02540361]
[1749875947835,0.7794891,105420.0,105410.0,0.02540353]
[1749875948044,0.7794891,105420.0,105410.0,0.001]
[1749875948257,0.7794891,105420.0,105410.0,0.02540354]
[1749875948459,0.7794891,105420.0,105410.0,0.02540355]
[1749875948669,0.7794891,105420.0,105410.0,0.01874804]
[1749875949071,0.7794891,105420.0,105410.0,0.02540358]
[1749875949308,0.7794891,105420.0,105410.0,0.02540356]
[1749875949513,0.7794891,105420.0,105410.0,0.00765552]
[1749875949719,0.7794891,105420.0,105410.0,0.02540359]
[1749875949926,0.7794891,105420.0,105410.0,0.001]
[1749875950180,0.7794891,105420.0,105410.0,0.00765552]
[1749875950389,0.7637891,105420.0,105410.0,0.01874806]
[1749875950627,0.7637891,105420.0,105410.0,0.02540763]
[1749875950865,0.7637891,105420.0,105410.0,0.02540867]
[1749875951061,0.7637891,105420.0,105410.0,0.02540889]
[1749875951192,0.7637891,105420.0,105410.0,0.00765717]
[1749875951399,0.7637891,105420.0,105410.0,0.00765757]
[1749875951605,0.7637891,105420.0,105410.0,0.00765761]
[1749875951808,0.7637891,105420.0,105410.0,0.02541142]
[1749875952006,0.7637891,105420.0,105410.0,0.00765766]
[1749875952409,0.7637891,105420.0,105410.0,0.01875376]
[1749875952630,0.7637891,105420.0,105410.0,0.001]
[1749875952879,0.7637891,105420.0,105410.0,0.01875376]
[1749875953085,0.7637891,105420.0,105410.0,0.02541142]
[1749875953734,0.7637891,105420.0,105410.0,0.02541145]
[1749875953956,0.7637891,105420.0,105410.0,0.02541128]
[1749875954160,0.7637891,105420.0,105410.0,0.02541094]